Cogmind - Beta 15 *** ADVENTURER MODE // 2025.08.31 @ 16:57:16 Player: Banshee Result: Self-destructed Performance ------------- Evolutions (7) 3500 Regions Visited (14) 2800 Robots Destroyed (91) 455 Value Destroyed (3767) 3767 Prototype IDs (25) 500 Alien Tech Used (0) 0 Bonus (1384) 1384 TOTAL SCORE: 12406 Bonus ------- Follower Combat Kills 284 Entered DSFs 500 Aligned with FarCom 300 Acquired ECA 300 Cogmind --------- Core Integrity 1300/1300 Matter 240/300 Energy 100/100 System Corruption 0% Temperature Cool (0) Movement Core (50) Location -3/Research Parts ------- > --- POWER (2) -------- (None) > --- PROPULSION (4) --- (None) > --- UTILITY (9) ------ Improved Sensor Array Advanced Signal Interpreter Advanced Terrain Scanner > --- WEAPON (6) ------- (None) > --- INVENTORY (5) ---- Armored Huge Wheel Improved Point Defense System Advanced Plasma Cannon Gauss Rifle Peak State ------------ > --- POWER ------------ Neutrino Core Neutrino Core > --- PROPULSION ------- Myomer Leg Myomer Leg Myomer Leg Myomer Leg > --- UTILITY ---------- Advanced Heat Sink Encrypted Comm Array ECM Suite Improved Hardlight Generator Hacking Suite Advanced Drone Bay > --- WEAPON ----------- High-powered Shock Rifle Wave Gun Wave Gun Heavy Ion Cannon > --- INVENTORY -------- Shield Generator High-powered Shock Rifle Magnetic Acceleration Cannon [Rating: 93] Favorites ----------- Power Angular Momentum Engine Engine Angular Momentum Engine Power Core Neutrino Core Propulsion Flexi-carbon Leg Treads Advanced Medium Treads Leg Flexi-carbon Leg Wheel Wheel Flight Unit Flight Unit Utility Hacking Suite Device Power Amplifier Storage Huge Storage Unit Processor Machine Analyzer Hackware Hacking Suite Protection Core Shielding Weapon Gauss Cannon Energy Gun Particle Gun Energy Cannon Proton Cannon Ballistic Gun Assault Rifle Ballistic Cannon Gauss Cannon Launcher Improved Proton Missile Launcher Piercing Weapon Heavy Pick Build | -11 -10 -10 -10 -9 -8 -8 -7 -7 -6 -6 -6 -5 -4 -3 ------- Run | Yrd Mat Min Exi Min Mat Sto Fac DSF Fac Low Low Fac Fac Res Slots Evolved 14 | . . . . . 4 . 2 . 2 . . 2 2 2 Power 1 | . . . . . . . . . 1 . . . . . Propulsion 2 | . . . . . 2 . . . . . . . . . Utility 7 | . . . . . 2 . 2 . . . . 1 1 1 Weapon 4 | . . . . . . . . . 1 . . 1 1 1 Parts Attached 108 | 5 2 5 . 1 5 14 . 21 21 5 . 26 3 . Power 16 | 1 . 1 . . . 3 . 3 3 1 . 4 . . Engine 8 | 1 . 1 . . . 1 . 2 2 1 . . . . Core 8 | . . . . . . 2 . 1 1 . . 4 . . Reactor . | . . . . . . . . . . . . . . . Propulsion 32 | 2 . 1 . . 1 7 . 8 6 1 . 4 2 . Treads 1 | . . . . . . . . . . . . . 1 . Leg 16 | . . . . . . 5 . . 6 1 . 4 . . Wheel 12 | 2 . 1 . . . . . 8 . . . . 1 . Hover . | . . . . . . . . . . . . . . . Flight 3 | . . . . . 1 2 . . . . . . . . Utility 31 | . 2 1 . 1 2 1 . 4 9 2 . 8 1 . Device 16 | . 1 . . . 1 . . 1 3 2 . 7 1 . Storage 1 | . . . . . . . . . 1 . . . . . Processor 6 | . 1 1 . . . 1 . . 2 . . 1 . . Hackware 3 | . . . . . 1 . . 1 1 . . . . . Protection 5 | . . . . 1 . . . 2 2 . . . . . Artifact . | . . . . . . . . . . . . . . . Weapon 29 | 2 . 2 . . 2 3 . 6 3 1 . 10 . . Energy Gun 12 | 2 . . . . 2 1 . 2 1 . . 4 . . Energy Cannon 5 | . . . . . . . . 1 2 . . 2 . . Ballistic Gun 5 | . . 2 . . . 2 . . . . . 1 . . Ballistic Cannon 3 | . . . . . . . . 2 . . . 1 . . Launcher 3 | . . . . . . . . 1 . 1 . 1 . . Special Weapon . | . . . . . . . . . . . . . . . Impact Weapon . | . . . . . . . . . . . . . . . Slashing Weapon . | . . . . . . . . . . . . . . . Piercing Weapon 1 | . . . . . . . . . . . . 1 . . Special Melee Weapon . | . . . . . . . . . . . . . . . Unidentified Prototypes 2 | . . . . . . 2 . . . . . . . . Corrupted Parts 1 | . . . . . . . . . . . . 1 . . System Corruption 8 | . . . . . . . . . . . . 8 . . Parts Lost 43 | . . . . . . . . 16 1 1 . 25 . . Power 6 | . . . . . . . . 2 . . . 4 . . Propulsion 11 | . . . . . . . . 5 . 1 . 5 . . Utility 15 | . . . . . . . . 7 1 . . 7 . . Weapon 11 | . . . . . . . . 2 . . . 9 . . Highest Loss Streak 9 | . . . . . . . . 9 1 1 . 9 . . To Critical Strikes 1 | . . . . . . . . 1 . . . . . . Average Backups 3 | . . 1 2 1 1 2 3 4 3 4 5 4 4 4 Power . | . . . . . . . . . . . . . . . Propulsion . | . . . . 1 . . . . . . . . . 1 Utility . | . . . . . . . . . . . 2 1 . 1 Weapon 1 | . . . . . . 1 3 3 2 3 3 2 3 2 Tool/Special . | . . . . . . . . . . . . . . . Unused Backups 7 | . . . 1 . . . . 1 . 1 1 1 . 2 Power . | . . . . . . . . . . . . . . . Propulsion . | . . . . . . . . . . . . . . . Utility 3 | . . . . . . . . . . 1 1 . . 1 Weapon 4 | . . . 1 . . . . 1 . . . 1 . 1 Tool/Special . | . . . . . . . . . . . . . . . Average Slot Usage (%) 81 | . 82 98 100 100 61 80 84 62 85 97 100 81 13 14 Engine 7 | . 14 14 14 14 9 7 7 5 12 13 13 . . . Core 2 | . . . . . . 1 . . . . . 8 . . Leg 13 | . . . . . . 13 30 3 21 25 26 17 . . Wheel 5 | . 28 28 28 28 . . . 15 1 . . . 1 . Device 14 | . 5 9 . . 3 9 7 1 13 25 26 25 6 9 Processor 8 | . 5 18 28 22 9 9 7 4 6 6 6 4 5 4 Hackware 4 | . . . . . 4 9 7 3 2 6 6 4 . . Protection 3 | . . . . 5 9 9 7 10 5 . . . . . Energy Gun 6 | . 28 18 . . 10 14 7 5 3 6 6 5 . . Energy Cannon 2 | . . . . . . . . 2 8 . . 3 . . Ballistic Gun 4 | . . 7 28 28 7 3 7 2 . . . 3 . . Ballistic Cannon 2 | . . . . . . . . 2 6 6 6 1 . . Peak Build Rating 93 | 5 9 9 11 11 43 43 25 33 64 67 65 93 24 15 Average Rating 42 | 3 6 8 8 10 39 16 25 25 56 64 64 66 14 15 On Entrance 25 | . 5 9 8 11 10 43 25 25 31 59 65 65 10 15 Naked Turns . | . . . . . . . . . . . . . . . Heaviest Build 67 | 7 15 17 9 10 13 17 17 29 66 57 49 67 2 2 Greatest Support 100 | 20 20 26 26 26 50 50 50 56 80 80 80 100 28 3 Greatest Overweight (x) 16 | . . . 2 . 3 4 . 5 16 . . 8 . . Average Overweight (x) . | . . . . . . 1 . . . . . . . . Largest Inventory Capacity 25 | 5 5 5 5 5 5 5 5 5 25 5 5 5 5 5 Average Capacity 5 | 5 5 5 5 5 5 5 5 5 5 5 5 5 5 5 Most Carried 5 | 2 . 4 5 4 5 5 3 5 5 5 5 5 5 5 Average Carried 3 | . . 1 3 4 1 2 3 4 3 4 4 4 4 5 Final Capacity 5 | 5 5 5 5 5 5 5 5 5 5 5 5 5 5 5 Final Carried 5 | . . 3 4 4 2 3 3 4 5 5 5 4 5 5 Class Distribution -------------------- 37% | Hacker-Skirmisher 17% | Hacker-Mutant 12% | Derelict-Mutant 10% | Mutant 8% | Scavenger-Mutant 4% | Skirmisher 4% | Tank 3% | Scout Dominant Class ---------------- Mutant | -10/Materials Derelict-Mutant | -10/Mines Derelict-Mutant | -10/Exiles Derelict-Mutant | -9/Mines Hacker-Mutant | -8/Materials Scavenger-Mutant | -8/Storage Scavenger-Mutant | -7/Factory Mutant | -7/DSF Hacker-Skirmisher | -6/Factory Hacker-Skirmisher | -6/Lower Caves Hacker-Skirmisher | -6/Lower Caves Hacker-Skirmisher | -5/Factory Scout | -4/Factory Scout | -3/Research Resources | -11 -10 -10 -10 -9 -8 -8 -7 -7 -6 -6 -6 -5 -4 -3 ----------- Run | Yrd Mat Min Exi Min Mat Sto Fac DSF Fac Low Low Fac Fac Res Matter Collected 2255 | 245 25 . . 39 197 315 . 313 153 524 29 415 . . Remotely 354 | . . . . . 49 305 . . . . . . . . Salvage Created 3804 | . 125 56 . 90 197 801 . 563 191 713 . 1068 . . Parts 166 | . 7 4 . 4 11 40 . 23 6 17 . 54 . . Haulers Intercepted 2 | . . . . . 1 1 . . . . . . . . Recyclers Shooed 3 | . . . . . . . . . 1 . . 2 . . Parts Field Recycled . | . . . . . . . . . . . . . . . Retrieved Matter . | . . . . . . . . . . . . . . . Parts Self-Destructed 8 | . . . . . . . . . . 8 . . . . Prevented 8 | . . . . . . . . . . 8 . . . . Kills | -11 -10 -10 -10 -9 -8 -8 -7 -7 -6 -6 -6 -5 -4 -3 ------- Run | Yrd Mat Min Exi Min Mat Sto Fac DSF Fac Low Low Fac Fac Res Combat Hostiles Destroyed 84 | . 3 3 . 2 3 17 . 13 4 12 . 27 . . Melee 4 | . . . . . . . . . . . . 4 . . Guns 43 | . 2 3 . 2 3 17 . 4 . 3 . 9 . . Cannons 21 | . . . . . . . . 6 3 2 . 10 . . AOE 8 | . . . . . . . . 3 . 3 . 2 . . Classes Destroyed 15 | . 1 1 . 1 2 3 . 3 3 1 . . . . Worker 1 | . . . . . . 1 . . . . . . . . Builder 2 | . . . . . . 1 . . . . . 1 . . Hauler 2 | . . . . . 1 1 . . . . . . . . Recycler 1 | . . . . . . 1 . . . . . . . . Watcher 1 | . . . . . . . . . 1 . . . . . Swarmer 27 | . . 3 . . . 7 . 2 . . . 15 . . Grunt 23 | . 3 . . 1 2 7 . 4 . 4 . 2 . . Brawler 1 | . . . . . . . . 1 . . . . . . Duelist 1 | . . . . 1 . . . . . . . . . . Sentry 6 | . . . . . 1 3 . . . . . 2 . . Specialist 5 | . . . . . . . . 5 . . . . . . Hunter 5 | . . . . . . . . . 2 . . 3 . . Programmer 9 | . . . . . . . . . 2 2 . 5 . . Heavy 1 | . . . . . . . . 1 . . . . . . Thug 3 | . . . . . . . . . . 3 . . . . Savage 2 | . . . . . . . . . . 2 . . . . Mutant 1 | . . . . . . . . . . 1 . . . . Best Kill Streak 6 | . 2 3 . 2 1 5 . 6 2 4 . 5 . . Combat Bots Only 6 | . 2 3 . 2 1 5 . 6 2 4 . 5 . . Max Kills in Single Turn 3 | . 1 2 . 1 1 2 . 3 1 1 . 2 . . Gunslinging 1 | . . 1 . . . . . . . . . . . . Exploded 3 | . . . . . . . . 3 . 1 . 2 . . Melee 1 | . . . . . . . . . . . . 1 . . Uniques/NPCs Destroyed . | . . . . . . . . . . . . . . . Combat | -11 -10 -10 -10 -9 -8 -8 -7 -7 -6 -6 -6 -5 -4 -3 -------- Run | Yrd Mat Min Exi Min Mat Sto Fac DSF Fac Low Low Fac Fac Res Hostile Shots Fired 819 | . 12 14 . 13 18 59 . 180 87 51 . 385 . . Missed 239 | . 4 6 . 6 6 21 . 49 17 23 . 107 . . Hits 580 | . 8 8 . 7 12 38 . 131 70 28 . 278 . . Melee 4 | . . . . . . . . 3 . 1 . . . . Projectile 576 | . 8 8 . 7 12 38 . 128 70 27 . 278 . . AOE 5 | . . . . . . . . . . . . 5 . . Critical Strikes 19 | . . . . . . 1 . 5 5 1 . 7 . . Actively Blocked 1 | . . . . . . . . 1 . . . . . . Part Disruptions 1 | . . . . . . . . . . . . 1 . . Damage Taken 7990 | . 262 51 . 58 147 401 . 2073 1052 435 . 3511 . . Core 2099 | . 233 7 . 8 . 115 . 444 221 76 . 995 . . Absorbed by Shields 560 | . . . . . . . . . . . . 560 . . Redirected to Shielding 104 | . . . . . . 21 . 67 16 . . . . . Ignored by Resistances 2379 | . 69 16 . 19 43 119 . 587 257 122 . 1147 . . Regen/Repaired (Parts) 237 | . . . . . . 36 . . 201 . . . . . Core Remaining (%) 54 | 100 . . . . . 79 . 36 . . 65 . 100 . Volleys Fired 283 | . 5 5 3 7 17 56 . 53 24 37 2 74 . . Largest 4 | . 2 2 2 2 2 2 . 2 3 2 1 4 . . Hottest 287 | . 80 80 40 40 130 130 . 123 190 85 40 287 . . Shots Fired 538 | . 10 10 6 14 34 112 . 103 48 39 2 160 . . Gun 366 | . 10 10 6 14 34 112 . 65 8 12 . 95 . . Cannon 152 | . . . . . . . . 35 40 13 2 62 . . Launcher 20 | . . . . . . . . 3 . 14 . 3 . . Special . | . . . . . . . . . . . . . . . Kinetic 197 | . . . 6 14 26 36 . 35 19 13 2 46 . . Thermal 254 | . . . . . 8 76 . 65 8 12 . 85 . . Explosive 6 | . . . . . . . . 3 . . . 3 . . Electromagnetic 81 | . 10 10 . . . . . . 21 14 . 26 . . Robot Hit Streak 23 | . 10 7 . 13 14 20 . 23 15 17 . 13 . . Robot Miss Streak 5 | . . 3 . 1 1 1 . 1 5 1 2 5 . . Penetration Max . | . . . . . . . . . . . . . . . Secondary Targets 2 | . 1 1 . . . . . . . . . . . . Max Gunslinging Chain 1 | . 1 1 . . . . . . . . . . . . Shots Hit Robots 408 | . 10 7 . 12 28 84 . 85 38 32 . 112 . . Core Hits 155 | . 6 3 . 4 9 36 . 28 7 18 . 44 . . Critical Kills . | . . . . . . . . . . . . . . . Critical Parts Destroyed 1 | . . . . . . . . 1 . . . . . . Critical Strikes 16 | . . 1 . . . 3 . 2 3 4 . 3 . . Burn 7 | . . . . . . 3 . 1 1 2 . . . . Destroy 1 | . . . . . . . . 1 . . . . . . Blast 5 | . . . . . . . . . 2 2 . 1 . . Corrupt 3 | . . 1 . . . . . . . . . 2 . . Melee Attacks 10 | . . . . . . . . . . . . 10 . . Impact . | . . . . . . . . . . . . . . . Slashing . | . . . . . . . . . . . . . . . Piercing 10 | . . . . . . . . . . . . 10 . . Sneak Attacks . | . . . . . . . . . . . . . . . Combat Hostiles . | . . . . . . . . . . . . . . . Follow-up Attacks . | . . . . . . . . . . . . . . . Damage Inflicted 9902 | . 213 75 . 157 355 1380 . 1988 1026 1433 . 3275 . . Guns 4893 | . 132 75 . 157 355 1366 . 934 176 204 . 1494 . . Cannons 2807 | . . . . . . . . 588 772 317 . 1130 . . Explosions 1823 | . 68 . . . . . . 466 78 912 . 299 . . Melee 257 | . . . . . . . . . . . . 257 . . Ramming 122 | . 13 . . . . 14 . . . . . 95 . . Kinetic 3006 | . . . . 157 242 469 . 658 370 317 . 793 . . Thermal 4141 | . 68 . . . 113 897 . 864 254 358 . 1587 . . Explosive 765 | . . . . . . . . 466 . . . 299 . . Electromagnetic 1611 | . 132 75 . . . . . . 402 758 . 244 . . Impact . | . . . . . . . . . . . . . . . Slashing . | . . . . . . . . . . . . . . . Piercing 257 | . . . . . . . . . . . . 257 . . Highest Corruption 18 | . . . . . . . . 4 5 5 5 18 . . Average Corruption 4 | . . . . . . . . 4 2 5 5 5 . . Corruption Purged . | . . . . . . . . . . . . . . . Corruption Blocked . | . . . . . . . . . . . . . . . Effects 72 | . . . . . . . . 3 20 20 2 27 . . Message Errors 15 | . . . . . . . . . 4 5 . 6 . . Matter Fused 18 | . . . . . . . . 1 5 5 1 6 . . Heat Flow Errors 11 | . . . . . . . . . 4 3 . 4 . . Energy Discharges 7 | . . . . . . . . 1 3 1 . 2 . . Parts Rejected 2 | . . . . . . . . . . . . 2 . . Parts Fused 2 | . . . . . . . . . . . 1 1 . . Data Loss (minor) 6 | . . . . . . . . . 2 3 . 1 . . Data Loss (major) 6 | . . . . . . . . 1 1 1 . 3 . . Misfires 2 | . . . . . . . . . 1 1 . . . . Alerts 3 | . . . . . . . . . . 1 . 2 . . Overload Shots . | . . . . . . . . . . . . . . . Overflow Damage 126 | . . . . . . . . 14 42 16 . 54 . . Projectiles 69 | . . . . . . . . . 42 . . 27 . . Explosions 46 | . . . . . . . . 14 . 16 . 16 . . Melee 11 | . . . . . . . . . . . . 11 . . Knockbacks 11 | . 1 . . . . 1 . . 3 2 . 4 . . Impact 2 | . 1 . . . . 1 . . . . . . . . Kinetic 8 | . . . . . . . . . 3 2 . 3 . . Secondary 1 | . . . . . . . . . . . . 1 . . Self-Inflicted Damage 132 | . 45 . . . . 4 . . 47 . . 36 . . Shots 2 | . 1 . . . . . . . 1 . . . . . Rammed 35 | . 1 . . . . 5 . . . . . 29 . . Targets Rammed 39 | . 1 . . . . 7 . . 1 . . 30 . . Kicked 4 | . . . . . . 2 . . 1 . . 1 . . Crushed . | . . . . . . . . . . . . . . . Highest Temperature 651 | . 130 152 . . 307 332 . 651 604 237 . 521 . . Average Temperature 144 | . 51 81 . . 116 117 . 220 178 86 . 158 . . Received Heat Transfer 958 | . 54 . . 42 108 225 . 189 . 162 . 178 . . Effects 33 | . . . . . . 1 . 7 14 . . 11 . . Shutdowns 11 | . . . . . . . . 2 5 . . 4 . . Energy Bleed 5 | . . . . . . 1 . 1 1 . . 2 . . Interference 5 | . . . . . . . . 1 4 . . . . . Matter Decay 1 | . . . . . . . . . 1 . . . . . Short Circuit 4 | . . . . . . . . 1 1 . . 2 . . Damage (minor) 3 | . . . . . . . . 2 1 . . . . . Damage (major) 3 | . . . . . . . . . . . . 3 . . Damage (core) 1 | . . . . . . . . . 1 . . . . . Siege Activations . | . . . . . . . . . . . . . . . Martial Activations . | . . . . . . . . . . . . . . . Shielding Activations . | . . . . . . . . . . . . . . . Robots Disrupted . | . . . . . . . . . . . . . . . Combat Hostiles . | . . . . . . . . . . . . . . . Robots Corrupted 6 | . 1 . . . . . . . . 4 . 1 . . Combat Hostiles 6 | . 1 . . . . . . . . 4 . 1 . . Parts Fried 13 | . . . . . . . . . 2 5 . 6 . . Impact Corruptions 2 | . . . . . . . . . . . . 2 . . Robots Melted 3 | . . . . . 1 . . . 1 . . 1 . . Combat Hostiles 2 | . . . . . . . . . 1 . . 1 . . Parts Melted 11 | . . . . . . . . . 4 4 . 3 . . Heat Transferred 8475 | . 100 . . . 296 2331 . 1998 600 850 . 2300 . . Parts Sabotaged . | . . . . . . . . . . . . . . . Parts Stolen . | . . . . . . . . . . . . . . . Parts Stripped . | . . . . . . . . . . . . . . . Power Chain Reactions 3 | . 1 . . . . . . . 1 1 . . . . Alert | -11 -10 -10 -10 -9 -8 -8 -7 -7 -6 -6 -6 -5 -4 -3 ------- Run | Yrd Mat Min Exi Min Mat Sto Fac DSF Fac Low Low Fac Fac Res Maximum Alert Level 1 | . . . . . . . . 1 . . . 1 . . Low Security (%) 95 | 100 100 100 . 100 100 100 100 78 100 . . 92 100 100 Level 1 4 | . . . . . . . . 21 . . . 7 . . Level 2 . | . . . . . . . . . . . . . . . Level 3 . | . . . . . . . . . . . . . . . Level 4 . | . . . . . . . . . . . . . . . Level 5 . | . . . . . . . . . . . . . . . High Security . | . . . . . . . . . . . . . . . Max Security . | . . . . . . . . . . . . . . . Sterilizations 1 | . . . . . . . . 1 . . . . . . Peak Influence 256 | . 65 91 . 50 60 198 61 256 116 . . 249 52 18 Initial 116 | . . 21 . . 9 2 61 37 116 . . . 52 . Average 52 | . 21 66 . 22 34 87 61 115 16 . . 53 16 6 Influence Increases 2621 | . 122 70 . 50 88 759 . 379 161 150 . 824 . 18 Destroy 0b10 Robot/C 1760 | . 60 60 . 40 60 540 . 260 80 120 . 540 . . Destroy 0b10 Robot/NC 35 | . . . . . 5 20 . . 5 . . 5 . . Destroy Leader 396 | . 10 10 . 10 22 122 . 50 32 30 . 110 . . Allied During Kill 40 | . . . . . . 40 . . . . . . . . Successful Hack 43 | . 4 . . . . 5 . . 16 . . . . 18 Disable Machine 63 | . . . . . . . . . 18 . . 45 . . Destroy Structure 119 | . 3 . . . 1 2 . 9 10 . . 94 . . Lose Combat Pursuer 165 | . 45 . . . . 30 . 60 . . . 30 . . Influence Decreases 2621 | . 57 84 51 20 111 608 97 184 417 150 . 698 126 18 Entered New Map 456 | . . 44 51 . 21 5 97 24 140 . . . 74 . Time Decay 1635 | . 57 40 . 20 90 463 . . 277 150 . 468 52 18 Lost Part 390 | . . . . . . . . 160 . . . 230 . . Lost Ally 140 | . . . . . . 140 . . . . . . . . Squads Dispatched 31 | . 1 . . . 2 11 . 3 4 . . 10 . . Investigation 9 | . 1 . . . 1 3 . . 2 . . 2 . . Extermination 5 | . . . . . . . . . 2 . . 3 . . Reinforcement 8 | . . . . . 1 2 . 3 . . . 2 . . Assault . | . . . . . . . . . . . . . . . Garrison 9 | . . . . . . 6 . . . . . 3 . . Intercept . | . . . . . . . . . . . . . . . Searches Triggered . | . . . . . . . . . . . . . . . Construction Impeded 2 | . . . . . . . . . . . . 2 . . Haulers Reinforced . | . . . . . . . . . . . . . . . Active Scanning Responses . | . . . . . . . . . . . . . . . Cargo Convoy Interrupts . | . . . . . . . . . . . . . . . Stealth | -11 -10 -10 -10 -9 -8 -8 -7 -7 -6 -6 -6 -5 -4 -3 --------- Run | Yrd Mat Min Exi Min Mat Sto Fac DSF Fac Low Low Fac Fac Res Distress Signals 5 | . . . . . . 5 . . . . . . . . Communications Jammed . | . . . . . . . . . . . . . . . Distress Signals . | . . . . . . . . . . . . . . . Times Spotted 128 | . 7 3 . 2 3 32 . 19 6 17 1 36 1 1 Peak Tracking Total 7 | . 3 3 . 2 2 7 . 7 3 6 1 6 1 1 Tactical Retreats 15 | . 1 . . . . 1 . 4 . 3 . 6 . . Traps | -11 -10 -10 -10 -9 -8 -8 -7 -7 -6 -6 -6 -5 -4 -3 ------- Run | Yrd Mat Min Exi Min Mat Sto Fac DSF Fac Low Low Fac Fac Res Traps Triggered 2 | . 1 . . . . . . . . . . 1 . . Indirectly . | . . . . . . . . . . . . . . . Trap Hack Attempts . | . . . . . . . . . . . . . . . Triggered . | . . . . . . . . . . . . . . . Disarmed . | . . . . . . . . . . . . . . . Reprogrammed . | . . . . . . . . . . . . . . . Reused . | . . . . . . . . . . . . . . . Traps Extracted . | . . . . . . . . . . . . . . . Installed . | . . . . . . . . . . . . . . . Triggered . | . . . . . . . . . . . . . . . Machines | -11 -10 -10 -10 -9 -8 -8 -7 -7 -6 -6 -6 -5 -4 -3 ---------- Run | Yrd Mat Min Exi Min Mat Sto Fac DSF Fac Low Low Fac Fac Res Machines Disabled 7 | . . . . . . . . . 2 . . 5 . . Max in Single Turn 1 | . . . . . . . . . 1 . . 1 . . Machines Repaired . | . . . . . . . . . . . . . . . Machines Dismantled . | . . . . . . . . . . . . . . . Machines Sabotaged . | . . . . . . . . . . . . . . . Overloaded Fab Kills . | . . . . . . . . . . . . . . . Hacking | -11 -10 -10 -10 -9 -8 -8 -7 -7 -6 -6 -6 -5 -4 -3 --------- Run | Yrd Mat Min Exi Min Mat Sto Fac DSF Fac Low Low Fac Fac Res Machines Accessed 25 | . 1 . 5 . 1 4 1 . 6 . . 5 . 2 Terminals 12 | . 1 . . . . 1 1 . 3 . . 4 . 2 Fabricators 2 | . . . . . . . . . 1 . . 1 . . Repair Stations 2 | . . . . . . 1 . . 1 . . . . . Recycling Units 4 | . . . . . 1 2 . . 1 . . . . . Scanalyzers . | . . . . . . . . . . . . . . . Garrison Access . | . . . . . . . . . . . . . . . Total Hacks 106 | . 2 . 50 . 3 17 1 . 17 . . 12 . 4 Successful 84 | . 1 . 50 . 1 14 1 . 12 . . 3 . 2 Failed 22 | . 1 . . . 2 3 . . 5 . . 9 . 2 Catastrophic 2 | . . . . . . . . . 1 . . . . 1 Database Lockouts . | . . . . . . . . . . . . . . . Manual 9 | . 1 . 5 . . . . . 1 . . 1 . 1 Terminals 28 | . 2 . . . . 4 1 . 7 . . 10 . 4 Fabricators 4 | . . . . . . . . . 2 . . 2 . . Repair Stations 7 | . . . . . . 4 . . 3 . . . . . Recycling Units 17 | . . . . . 3 9 . . 5 . . . . . Scanalyzers . | . . . . . . . . . . . . . . . Garrison Access . | . . . . . . . . . . . . . . . Terminal Hacks 62 | . 1 . 50 . . 2 1 . 4 . . 2 . 2 Record 51 | . . . 49 . . . . . . . . . . 2 Robot Analysis 1 | . 1 . . . . . . . . . . . . . Open DSF 3 | . . . . . . . 1 . 1 . . 1 . . Emergency Access Points 1 | . . . . . . . . . . . . 1 . . Alert Level 1 | . . . . . . . . . 1 . . . . . Maintenance Status 1 | . . . . . . . . . 1 . . . . . Extermination Status 1 | . . . . . . 1 . . . . . . . . Reinforcement Status 1 | . . . . . . 1 . . . . . . . . Recall Assault 1 | . . . . . . . . . 1 . . . . . Proto ID Catalog 1 | . . . 1 . . . . . . . . . . . Fabricator Hacks 2 | . . . . . . . . . 1 . . 1 . . Network Status 2 | . . . . . . . . . 1 . . 1 . . Repair Station Hacks 6 | . . . . . . 4 . . 2 . . . . . Scan Component 3 | . . . . . . 2 . . 1 . . . . . Repair 3 | . . . . . . 2 . . 1 . . . . . Recycling Unit Hacks 14 | . . . . . 1 8 . . 5 . . . . . Recycle Component 3 | . . . . . . . . . 3 . . . . . Process 1 | . . . . . . . . . 1 . . . . . Report Inventory 6 | . . . . . 1 4 . . 1 . . . . . Retrieve Matter 1 | . . . . . . 1 . . . . . . . . Retrieve Components 3 | . . . . . . 3 . . . . . . . . Scanalyzer . | . . . . . . . . . . . . . . . Garrison Access Hacks . | . . . . . . . . . . . . . . . Unauthorized Hacks . | . . . . . . . . . . . . . . . Terminals . | . . . . . . . . . . . . . . . Fabricators . | . . . . . . . . . . . . . . . Repair Stations . | . . . . . . . . . . . . . . . Recycling Units . | . . . . . . . . . . . . . . . Scanalyzers . | . . . . . . . . . . . . . . . Garrison Access . | . . . . . . . . . . . . . . . Data Cores Recovered . | . . . . . . . . . . . . . . . Used . | . . . . . . . . . . . . . . . Hacking Detections 17 | . 1 . . . 1 3 . . 5 . . 5 . 2 Full Trace Events 8 | . . . . . 1 3 . . 2 . . 2 . . Feedback Events 1 | . . . . . . . . . 1 . . . . . Corruption 1 | . . . . . . . . . 1 . . . . . Feedback Blocked . | . . . . . . . . . . . . . . . Robot Schematics Acquired . | . . . . . . . . . . . . . . . Robots Built . | . . . . . . . . . . . . . . . Authchips . | . . . . . . . . . . . . . . . Time . | . . . . . . . . . . . . . . . Total Robot Build Rating . | . . . . . . . . . . . . . . . Part Schematics Acquired . | . . . . . . . . . . . . . . . Parts Built . | . . . . . . . . . . . . . . . Authchips . | . . . . . . . . . . . . . . . Time . | . . . . . . . . . . . . . . . Total Part Build Rating . | . . . . . . . . . . . . . . . Parts Repaired 2 | . . . . . . 1 . . 1 . . . . . Time 113 | . . . . . . 91 . . 22 . . . . . Parts Recycled 3 | . . . . . . . . . 3 . . . . . Recycled Matter 343 | . . . . . . . . . 343 . . . . . Retrieved Matter . | . . . . . . . . . . . . . . . Retrieved Components 15 | . . . . . . 15 . . . . . . . . Parts Scanalyzed . | . . . . . . . . . . . . . . . Part Schematics Acquired . | . . . . . . . . . . . . . . . Parts Damaged . | . . . . . . . . . . . . . . . Bothacking | -11 -10 -10 -10 -9 -8 -8 -7 -7 -6 -6 -6 -5 -4 -3 ------------ Run | Yrd Mat Min Exi Min Mat Sto Fac DSF Fac Low Low Fac Fac Res Used RIF Installer . | . . . . . . . . . . . . . . . Robots Hacked . | . . . . . . . . . . . . . . . Non-combat . | . . . . . . . . . . . . . . . Combat . | . . . . . . . . . . . . . . . Robot Hacks Applied . | . . . . . . . . . . . . . . . Relay Couplers Released . | . . . . . . . . . . . . . . . Fabnet Peak Effective % . | . . . . . . . . . . . . . . . Robots Rewired 2 | . . . . . . . . . . 2 . . . . Allies Hacked . | . . . . . . . . . . . . . . . Hacks Repelled . | . . . . . . . . . . . . . . . Allies | -11 -10 -10 -10 -9 -8 -8 -7 -7 -6 -6 -6 -5 -4 -3 -------- Run | Yrd Mat Min Exi Min Mat Sto Fac DSF Fac Low Low Fac Fac Res Total Allies 12 | . . . . . . 10 . . . 2 . . . . Largest Group 10 | . . . . . . 10 . . . 2 2 1 . . Highest-Rated Group 173 | . . . . . . 173 . . . 56 53 25 . . Highest-Rated Ally 31 | . . . . . . 29 . . . 31 28 25 . . Initial Warlord ECA Mod 46 | . . . . . . . . . 9 9 9 8 6 5 Warlord Squad Rendezvous 1 | . . . . . . . . . . . . 1 . . Muscle 1 | . . . . . . . . . . . . 1 . . Total Orders 2 | . . . . . . 1 . . . 1 . . . . ROAM 1 | . . . . . . 1 . . . . . . . . FOLLOW 1 | . . . . . . . . . . 1 . . . . Ally Attacks 76 | . . . . . . 67 . . . . 5 4 . . Total Damage 1000 | . . . . . . 842 . . . . 65 93 . . Kills 11 | . . . . . . 11 . . . . . . . . Allies Corrupted . | . . . . . . . . . . . . . . . Allies Melted . | . . . . . . . . . . . . . . . Intel | -11 -10 -10 -10 -9 -8 -8 -7 -7 -6 -6 -6 -5 -4 -3 ------- Run | Yrd Mat Min Exi Min Mat Sto Fac DSF Fac Low Low Fac Fac Res Active Infowar (turns) 3208 | . . . . . . . . . 672 645 49 1588 192 62 Sensors 275 | . . . . . . . . . . . . 21 192 62 Terrain 1 | . . . . . . . . . . . . . 1 . Machine Analysis 2688 | . . . . . . . . . 466 645 49 1528 . . Cloaking 6 | . . . . . . . . . . . . 6 . . ECM 2927 | . . . . . . . . . 672 645 49 1561 . . Robot Analysis Total 1 | . 1 . . . . . . . . . . . . . Derelict Logs Recovered 3 | . . 2 . . . . . . . 1 . . . . Drone Launches 2 | . . . . . . . . . . . . 2 . . Drone Recoveries 2 | . . . . . . . . . . . . 2 . . Exploration | -11 -10 -10 -10 -9 -8 -8 -7 -7 -6 -6 -6 -5 -4 -3 ------------- Run | Yrd Mat Min Exi Min Mat Sto Fac DSF Fac Low Low Fac Fac Res Turns Passed 6767 | 53 175 90 660 72 193 1077 3 415 1198 645 49 1883 192 62 Spaces Moved 4313 | 54 148 72 713 53 110 490 3 203 634 441 36 959 275 122 Core 535 | 3 . . 2 . 1 80 . 8 2 . . 76 241 122 Treads . | . . . . . . . . . . . . . . . Legs 2135 | . . . . . . 258 3 9 505 441 36 883 . . Wheels 1382 | 51 148 72 711 53 . . . 186 127 . . . 34 . Hover . | . . . . . . . . . . . . . . . Flight 261 | . . . . . 109 152 . . . . . . . . Fastest Speed 50 | 50 80 80 90 90 50 50 120 90 100 122 122 50 50 50 Average Speed 105 | 78 80 83 90 90 51 147 120 99 119 122 122 115 56 50 Slowest Speed 850 | 80 80 90 150 90 200 280 120 300 850 123 122 450 100 50 Overloaded Moves . | . . . . . . . . . . . . . . . Propulsion Burnouts . | . . . . . . . . . . . . . . . Robots Hopped 2 | . . . . . 2 . . . . . . . . . Potential Cave-ins . | . . . . . . . . . . . . . . . Cave-ins Triggered . | . . . . . . . . . . . . . . . Exploration Rate (%) 31 | 3 28 21 93 16 8 54 . 89 15 62 12 27 6 2 Regions Visited 14 Branch Regions 6 Pre-discovered Areas 3 | . . 1 1 . . . . . . 1 . . . . Known Exits Taken 6 | . . 1 1 1 1 1 1 . . . . . . . Unknown Exits Taken 7 | 1 1 . . . . . . . 1 1 1 1 1 . Scrap Searched 3 | . . 1 . . . . . . . 1 1 . . . Spaces Dug . | . . . . . . . . . . . . . . . Terrain Destroyed 73 | . 2 . . . . . . 9 10 3 1 48 . . Melee . | . . . . . . . . . . . . . . . Projectile 11 | . . . . . . . . . 3 . 1 7 . . AOE 62 | . 2 . . . . . . 9 7 3 . 41 . . Terrain Rammed . | . . . . . . . . . . . . . . . Walls Destroyed . | . . . . . . . . . . . . . . . Machines Disabled . | . . . . . . . . . . . . . . . Actions | -11 -10 -10 -10 -9 -8 -8 -7 -7 -6 -6 -6 -5 -4 -3 --------- Run | Yrd Mat Min Exi Min Mat Sto Fac DSF Fac Low Low Fac Fac Res Total 6003 | 62 193 92 725 63 211 734 2 321 1034 507 39 1585 313 122 Wait 1106 | 2 38 1 . 2 73 148 . 25 329 6 . 456 26 . Move 4295 | 53 147 71 712 52 105 489 2 202 633 440 35 958 274 122 Hop 2 | . . . . . 2 . . . . . . . . . Pick Up 35 | 2 . 1 1 . 2 4 . 4 7 4 1 6 3 . Fast Attach 72 | 3 2 4 1 1 4 6 . 16 15 1 . 16 3 . Attach 25 | 2 . . 1 . 1 3 . 2 5 1 . 9 1 . Detach 30 | . . 4 1 1 3 5 . 4 6 . . 5 1 . Swap 28 | . . 2 . . . 8 . 4 3 3 . 8 . . Drop 64 | . . 4 4 . 4 8 . 11 11 3 1 13 5 . Fire 283 | . 5 5 3 7 17 56 . 53 24 37 2 74 . . Melee 10 | . . . . . . . . . . . . 10 . . Ram 35 | . 1 . . . . 5 . . . . . 29 . . Kick 4 | . . . . . . 2 . . 1 . . 1 . . Crush . | . . . . . . . . . . . . . . . Escape Stasis . | . . . . . . . . . . . . . . . Rewire 14 | . . . 2 . . . . . . 12 . . . . Trap . | . . . . . . . . . . . . . . . Miscellaneous . | . . . . . . . . . . . . . . . Route ------- -11/Scrapyard -10/Materials -10/Mines -10/Exiles (discovered 2 exits: *Min x2) -9/Mines -8/Materials -8/Storage -7/Factory -7/DSF -6/Factory -6/Lower Caves -6/Lower Caves -5/Factory (discovered 2 exits: [*Fac] / [*Upp]) -4/Factory -3/Research History --------- Turn | Location | Event 19 | -11/Scrapyard | Discovered new exit (range 15) 54 | -11/Scrapyard | Entered Materials 122 | -10/Materials | Core integrity fell below 50% 122 | -10/Materials | Core integrity fell below 20% 217 | -10/Materials | Discovered new exit (range 16) 229 | -10/Materials | Entered Mines 275 | -10/Mines | Found DCF Scrap (14 items) 301 | -10/Mines | Learned Materials garrison access intel 314 | -10/Mines | Deemed a non-threat by the Exiles lab entrance 315 | -10/Mines | Discovered new exit (range 5) 318 | -10/Mines | Identified exit to Exiles 319 | -10/Mines | Entered Exiles 351 | -10/Exiles | Discovered new exit (range 14) 362 | -10/Exiles | Identified exit to Mines 380 | -10/Exiles | Met 8R-AWN 401 | -10/Exiles | Met EX-HEX 441 | -10/Exiles | Met EX-DEC 465 | -10/Exiles | Learned location of Zion (-6) 506 | -10/Exiles | Discovered exit to Mines (range 14) 572 | -10/Exiles | Visited The Gauntlet 584 | -10/Exiles | Build established: Derelict-Mutant 774 | -10/Exiles | Met EX-BIN 795 | -10/Exiles | Aligned with FarCom system 796 | -10/Exiles | Given EX-Vault access code 847 | -10/Exiles | Opened EX-Vault 859 | -10/Exiles | Found Prototype Flight Unit 893 | -10/Exiles | Identified Flying Fortress v7 912 | -10/Exiles | Warned to stay clear of 0b10 Research branches 979 | -10/Exiles | Left Exiles lab with Flying Fortress v7 979 | -10/Exiles | Entered Mines 1043 | -9/Mines | Discovered new exit (range 11) 1050 | -9/Mines | Identified exit to Materials 1051 | -9/Mines | Entered Materials 1051 | -8/Materials | Evolved 4 slots: Propulsion x2, Utility x2 1052 | -8/Materials | Loaded intel: 1 garrison access location 1062 | -8/Materials | Discovered new exit (range 15) 1146 | -8/Materials | Identified exit to Storage 1244 | -8/Materials | Entered Storage 1298 | -8/Storage | Repaired Lgt. Nuclear Core? 1363 | -8/Storage | Garrison activated, responded to threat 1451 | -8/Storage | Build established: Hacker-Mutant 1733 | -8/Storage | Assisted by bots powering up and referring to "LRC-V3" 1852 | -8/Storage | Lost 6 allies 1861 | -8/Storage | Garrison activated, responded to threat 2256 | -8/Storage | Build established: Scavenger-Mutant 2284 | -8/Storage | Discovered new exit (range 15) 2320 | -8/Storage | Identified exit to Factory 2321 | -8/Storage | Entered Factory 2321 | -7/Factory | Evolved 2 slots: Utility x2 2324 | -7/Factory | Identified exit to DSF 2324 | -7/Factory | Entered DSF 2406 | -7/DSF | Additional patrols routed to DSF 2527 | -7/DSF | Core integrity fell below 50% 2550 | -7/DSF | Lost 9 parts (1p4n3u1w) 2636 | -7/DSF | Sterilization system engaged 2656 | -7/DSF | Ambient heat levels rising (+10) 2671 | -7/DSF | Ambient heat levels rising (+10) 2686 | -7/DSF | Ambient heat levels rising (+10) 2701 | -7/DSF | Ambient heat levels rising (+10) 2716 | -7/DSF | Ambient heat levels rising (+10) 2725 | -7/DSF | Discovered new exit (range 15) 2731 | -7/DSF | Ambient heat levels rising (+10) 2739 | -7/DSF | Entered Factory 2739 | -6/Factory | Evolved 2 slots: Power x1, Weapon x1 2801 | -6/Factory | Repaired Arm. Huge Wheel 3642 | -6/Factory | Build established: Hacker-Skirmisher 3918 | -6/Factory | Discovered new exit (range 16) 3937 | -6/Factory | Entered Lower Caves 4003 | -6/Lower Caves | Met a Warlord Commander 4004 | -6/Lower Caves | Learned location of Warlord (-4) 4005 | -6/Lower Caves | Warlord Commander delivered Encrypted Comm Array 4013 | -6/Lower Caves | Found Encrypted Comm Array 4340 | -6/Lower Caves | Attacked by a faux Warlord 4538 | -6/Lower Caves | Learned Factory stockpile data 4562 | -6/Lower Caves | Discovered new exit (range 15) 4582 | -6/Lower Caves | Entered another Lower Caves area 4582 | -6/Lower Caves | Accompanied by 2 allies 4623 | -6/Lower Caves | Discovered new exit (range 8) 4631 | -6/Lower Caves | Entered Factory 4631 | -5/Factory | Accompanied by 1 ally 4631 | -5/Factory | Evolved 2 slots: Utility x1, Weapon x1 4995 | -5/Factory | Joined by Warlord Muscle squad 5039 | -5/Factory | Discovered new exit (range 5) 5127 | -5/Factory | Lost 4 parts (1n3w) 6128 | -5/Factory | System corruption reached 10% 6239 | -5/Factory | Lost 5 parts (2p2u1w) 6264 | -5/Factory | Garrison activated, responded to threat 6330 | -5/Factory | Lost 6 parts (3n1u2w) 6423 | -5/Factory | Core integrity fell below 50% 6447 | -5/Factory | Core integrity fell below 20% 6482 | -5/Factory | Lost 9 parts (2p1n4u2w) 6511 | -5/Factory | Discovered new exit (range 6) 6514 | -5/Factory | Entered another Factory area 6514 | -4/Factory | Evolved 2 slots: Utility x1, Weapon x1 6659 | -4/Factory | Discovered new exit (range 15) 6706 | -4/Factory | Entered Research 6706 | -3/Research | Evolved 2 slots: Utility x1, Weapon x1 6768 | -3/Research | Self-destructed Last Messages --------------- materials lab. Further evidence of undiscovered security loopholes in the labs are its extremely fast shredding claws of pure [Centrium]. 06719_ Connecting with Terminal... >>Query(Hypervelocity Weapons) Successful experiments in maintaining the stability of highly compressed matter during high-velocity impact events have enabled the creation of weapons that can accelerate projectiles to greater speeds for penetrating multiple targets. Many new railgun-type ballistic weapons have alternate hypervelocity variants that inflict less collateral damage in exchange for the potential to strike more than one target and reach critical systems, or even bore through thick walls to strike targets on the other side. A unique application of this technique was used in the design of the [Hypervelocity EM Gauss Rifle]. Map ----- +----------------------------------------------------+ | ??????????# # #####+########## | | ??????????# # ## | | ??????????# " + ## | | ??????????# # ## | | ??????????# # """ ## "" | | ??????????### ### """ ##### """ # | | ????????????# #?# """ #???# T" # | | ????????????# ############### """ # | | ????????????# "" | | ????????????##### #### | | ????????????????# #??# | | ????????????????# #??# | | ????????????????# #?##+##+##########+### | | ????????????????# #?# #????????? | | ?????????######## #?# #????????? | | ?????????# # #?# ! #????????? | | ?????????# # ### #????????? | | ?????????# # + #????????? | | ?????????# # ### #????????? | | ?????????# # #?# ""T"" #????????? | | ?????????# # #?# """"" #????????? | | ?????????# # #?###########????????? | | ?????????# # #### #????????????? | | ?????????# + g ???????? | | ?????????# = # " ???????? | | ?????????# @###### ###??????????? | | ?????????# #?????? ##????????????? | | ?????????# #????????#?????????????? | | ?????????########??????????????????????? | | ???????????????????????????????????????? | | ???????????????????????????????????????? | | ???????????????????????????????????????? | | ???????????????????????????????????????? | | ???????????????????????????????????????? | | ???????????????????????????????????????? | | ???????????????????????????????????????? | | ???????????????????????????????????????? | | ???????????????????????????????????????? | | ???????????????????????????????????????? | | ???????????????????????????????????????? | | ???????????????????????????????????????? | | ???????????????????????????????????????? | | ???????????????????????????????????????? | | ???????????????????????????????????????? | | ???????????????????????????????????????? | | ???????????????????????????????????????? | | ???????????????????????????????????????? | | ???????????????????????????????????????? | | ???????????????????????????????????????? | | ???????????????????????????????????????? | +----------------------------------------------------+ Best States ------------- Heat Dissipation 59 Energy Generation 38 Energy Capacity 530 Matter Stores 300 Matter Capacity 300 Sight Range 16 Robot Scan Range 15 Terrain Scan Density 85 ECM Strength 1 Power Amplification 20 Armor Coverage 600 Resistance: KI 20 Resistance: TH 20 Resistance: EX 20 Resistance: EM 20 Resistance: I 20 Resistance: S 20 Resistance: P 20 Core Shielding 20 Power Shielding 33 Evasion (%) 60 Salvage Targeting 1 Offensive Hacking 30 Item Schematics ----------------- None Robot Schematics ------------------ None Fabricated ------------ Nothing Repaired ---------- Lgt. Nuclear Core | 28% | -8/Storage Arm. Huge Wheel | 19% | -6/Factory Alien Tech Used ----------------- None Achievements -------------- A New Friend Close Call Oops The More The Merrier Challenges ------------ None Game ------ Seed GravjetPhasingPod Manual? 0 Play Time 01:28:10 Cumulative 12.9 hours Start 2025.08.26 @ 22:45:50 End 2025.08.31 @ 16:57:16 Sessions 6 Manual Loads 0 Difficulty Adventurer Special Mode None Game No. 16 Rogue 5 Adventurer 11 Explorer 0 Win Type - Total 0 Types 0/0/0/0/0/0/0/0/0/0 Lore% 13 Gallery% 19 Achievement% 20 Wizard Run 0 Options --------- Layout 1 ASCII 0 Keyboard 1 Movement Numpad Keybinds 0 Fullscreen 1 Font 32/Tamsyn Map View 50x35 Zoom Use 0% Tactical HUD 1 Map Filters NONE Filters NONE Steam 1 RUN: 7dc5227d-1b26-4d4f-9312-e51b51c6e1c0